bitfinex/quotes_SOLUSD_20250429
["timestamp","ask_amount","ask_price","bid_price","bid_amount"]
[1745915148738,11.09519098,149.07,149.06,0.03]
[1745915150112,17.80344884,149.07,149.06,0.03]
[1745915150323,11.09519098,149.07,149.06,0.03]
[1745915151627,17.76315326,149.07,149.06,0.03]
[1745915153539,107.37141112,149.07,149.06,0.03]
[1745915153747,100.66315326,149.07,149.06,0.03]
[1745915155032,107.37141112,149.07,149.06,0.03]
[1745915155232,100.66315326,149.07,149.06,0.03]
[1745915156528,107.37141112,149.07,149.06,0.03]
[1745915160855,82.87,149.05,149.02,0.03]
[1745915161058,17.76315326,149.03,149.02,0.03]
[1745915161261,35.52630652,149.03,149.02,0.03]
[1745915161856,17.76315326,149.03,149.02,0.03]
[1745915162341,35.52630652,149.03,149.02,0.03]
[1745915162867,42.23636489,149.03,149.02,0.03]
[1745915163563,6.71005837,149.03,149.02,0.03]
[1745915163759,24.47321163,149.03,149.02,0.03]
[1745915164277,42.23636489,149.03,149.02,0.03]
[1745915164643,24.47321163,149.03,149.02,0.03]
[1745915165961,17.76315326,149.03,149.02,0.03]
[1745915166264,100.63315326,149.03,149.02,0.03]
[1745915167565,107.34321163,149.03,149.02,0.03]
[1745915169452,100.63315326,149.03,149.02,0.03]
[1745915169662,82.87,149.06,149.02,0.03]
[1745915169850,82.87,149.06,149.02,17.79315326]
[1745915170045,82.87,149.06,149.03,17.76315326]
[1745915170750,82.87,149.06,149.02,24.5035933]
[1745915171553,82.87,149.06,149.04,17.76315326]
[1745915171940,82.87,149.06,149.05,17.76315326]
[1745915172343,82.87,149.08,149.05,17.76315326]
[1745915172543,82.87,149.08,149.06,17.76315326]
[1745915173660,82.87,149.08,149.06,11.0959997]
[1745915174842,82.87,149.08,149.02,16.80620534]
[1745915175044,82.87,149.08,149.06,11.0959997]
[1745915175575,82.87,149.08,149.06,17.75371511]
[1745915175746,82.87,149.08,149.05,17.75371511]
[1745915178074,82.87,149.08,149.06,17.75371511]
[1745915178872,82.87,149.12,149.07,17.75371511]
[1745915179058,82.87,149.11,149.09,17.75371511]
[1745915179372,82.87,149.1,149.05,1.5929]
[1745915179576,100.62371511,149.1,149.06,17.75371511]
[1745915180161,82.87,149.1,149.08,17.75371511]
[1745915180546,82.87,149.1,149.09,17.75371511]
[1745915181064,0.063,149.13,149.07,6.1634]
[1745915181256,0.063,149.13,149.09,17.75371511]
[1745915181458,0.063,149.13,149.08,17.75371511]
[1745915181459,17.75371511,149.12,149.08,17.75371511]
[1745915181978,17.75371511,149.11,149.07,17.75371511]
[1745915183170,17.75371511,149.11,149.06,17.75371511]
[1745915183171,6.70690811,149.1,149.06,17.75371511]
[1745915183463,24.46062322,149.1,149.05,19.34661511]
[1745915183641,17.75371511,149.09,149.04,38.26314133]
[1745915183846,17.75371511,149.08,149.04,38.26314133]
[1745915184046,17.75371511,149.07,149.04,13.8]
[1745915184260,17.75371511,149.05,149.02,0.03]
[1745915184458,24.46062322,149.1,149.02,0.03]
[1745915184459,17.75371511,149.04,149.02,0.03]
[1745915184655,124.0978935,149.1,149.02,0.03]
[1745915184656,17.75371511,149.06,149.02,0.03]
[1745915184856,17.75371511,149.06,149.02,17.78371511]
[1745915185273,17.75371511,149.06,149.02,24.49419261]
[1745915185490,82.87,149.1,149.04,17.75371511]
[1745915185655,17.75371511,149.08,149.03,17.75371511]
[1745915186183,17.75371511,149.07,149.03,17.75371511]
[1745915186687,17.75371511,149.07,149.02,17.78371511]
[1745915187184,17.75371511,149.07,149.03,17.75371511]
[1745915188380,17.75371511,149.08,149.04,17.75371511]
[1745915188693,100.62371511,149.09,149.05,6.709158]
[1745915189293,17.75371511,149.07,149.04,6.70941737]
[1745915189451,17.75371511,149.08,149.03,19.25601511]
[1745915189654,17.75371511,149.07,149.03,19.25601511]
[1745915190355,17.75371511,149.08,149.04,17.75371511]
[1745915190560,89.5774057,149.09,149.07,6.70825786]
[1745915190561,82.87,149.09,149.07,6.70825786]
[1745915190980,82.87,149.09,149.07,24.46197297]
[1745915191166,6.70630559,149.12,149.08,17.75371511]
[1745915191167,82.87,149.12,149.08,17.75371511]
[1745915191373,82.87,149.12,149.1,17.75371511]
[1745915191577,82.87,149.12,149.11,17.75371511]
[1745915191787,0.063,149.13,149.11,17.75371511]
[1745915192798,0.063,149.13,149.1,17.75371511]
[1745915196793,17.81671511,149.13,149.09,17.75371511]
[1745915197498,17.81671511,149.13,149.07,16.77064466]
[1745915197800,17.81671511,149.13,149.09,17.75371511]
[1745915198005,24.52233959,149.13,149.09,17.75371511]
[1745915198178,6.76862448,149.13,149.1,17.75371511]
[1745915199476,17.85843444,149.13,149.09,11.08980996]
[1745915199986,0.063,149.13,149.12,11.08980996]
[1745915202980,0.063,149.13,149.12,17.79581854]
[1745915209687,0.063,149.13,149.12,37.78633716]
[1745915212790,0.063,149.13,149.12,63.78633716]
[1745915219611,0.063,149.13,149.12,37.78633716]
[1745915219997,0.063,149.13,149.12,17.79581854]
[1745915226303,0.063,149.13,149.12,37.78631919]
[1745915226724,1e-08,149.13,149.12,63.78631919]
[1745915228927,1e-08,149.13,149.12,37.78631919]
[1745915230008,1e-08,149.13,149.12,36.4454674]
[1745915231306,1e-08,149.13,149.12,50.0854674]
[1745915247141,1e-08,149.13,149.12,31.43581854]
[1745915247713,1e-08,149.13,149.12,13.64]
[1745915247926,11.08980997,149.13,149.09,17.79696196]
[1745915248138,11.08980996,149.12,149.08,20.16747029]
[1745915248460,11.08980996,149.1,149.08,13.46]
[1745915248748,11.08980996,149.11,149.08,13.46]
[1745915249047,11.08980996,149.12,149.08,20.16765391]
[1745915249228,11.08980996,149.12,149.08,31.25746387]
[1745915250862,11.08980996,149.12,149.08,13.46]
[1745915250863,93.95980996,149.11,149.08,13.46]
[1745915251020,11.08980996,149.09,149.08,13.46]
[1745915251221,17.79688011,149.1,149.06,0.03]
[1745915251741,17.79688011,149.1,149.06,6.73870782]
[1745915252037,11.08980996,149.09,149.06,0.03]
[1745915252540,11.08980996,149.1,149.06,11.11980996]
[1745915252745,11.08980996,149.1,149.06,0.03]
[1745915252947,93.95980996,149.11,149.07,11.08980996]
[1745915253125,82.87,149.11,149.08,11.08980996]
[1745915253325,93.95980996,149.11,149.07,11.08980996]
[1745915253926,11.08980996,149.1,149.06,0.03]
[1745915254245,11.08980996,149.1,149.06,11.11980996]
[1745915255450,11.08980996,149.1,149.06,17.82806963]
[1745915256562,93.95980996,149.11,149.07,11.08980996]
[1745915258047,93.95980996,149.11,149.07,17.79798654]
[1745915261147,82.87,149.11,149.08,11.08980996]
[1745915261352,11.08980996,149.11,149.07,17.79798654]
[1745915262158,11.08980996,149.1,149.06,6.73856114]
[1745915262337,11.08980996,149.09,149.06,17.8283711]
[1745915262738,11.08980996,149.09,149.06,6.73856114]
[1745915262935,11.08980996,149.09,149.06,0.03]
[1745915263153,11.08980996,149.08,149.06,0.03]
[1745915263353,11.08980996,149.07,149.06,0.03]
[1745915263558,17.79785256,149.08,149.06,0.03]
[1745915266237,11.08980996,149.08,149.06,0.03]
[1745915267157,82.87,149.07,149.06,0.03]
[1745915267349,93.95980996,149.07,149.06,0.03]
[1745915267548,82.87,149.07,149.06,0.03]
[1745915268446,93.95980996,149.07,149.06,0.03]
[1745915268662,100.66806782,149.07,149.06,0.03]
[1745915268865,89.57825786,149.07,149.06,0.03]
[1745915269079,100.66806782,149.07,149.06,0.03]
[1745915270060,13.36,149.12,149.06,0.03]
[1745915270061,82.87,149.09,149.06,0.03]
[1745915270247,93.95980996,149.09,149.06,0.03]
[1745915270773,11.08980996,149.08,149.06,0.03]
[1745915272272,82.87,149.09,149.06,0.03]
[1745915272449,11.08980996,149.08,149.06,0.03]
[1745915273667,89.57744791,149.09,149.06,0.03]
[1745915273870,11.08980996,149.08,149.06,0.03]
[1745915275483,93.95980996,149.07,149.06,0.03]
[1745915277277,100.66806782,149.07,149.06,0.03]
[1745915278384,17.79806782,149.07,149.06,0.03]
[1745915283365,6.70799245,149.08,149.06,0.03]
[1745915283570,11.08980996,149.08,149.06,0.03]
[1745915284262,93.98980996,149.09,149.06,0.03]
[1745915284463,82.9,149.09,149.06,0.03]
[1745915284662,93.98980996,149.09,149.06,0.03]
[1745915285278,82.9,149.09,149.06,11.11980996]
[1745915285460,93.98980996,149.11,149.07,11.08980996]
[1745915285661,100.69631776,149.11,149.07,11.08980996]
[1745915285861,11.08980996,149.1,149.06,11.11980996]
[1745915286279,82.9,149.11,149.07,11.08980996]
[1745915286669,82.9,149.11,149.08,11.08980996]
[1745915286877,82.9,149.11,149.09,11.08980996]
[1745915287075,1e-08,149.13,149.1,11.08980996]
[1745915287384,11.08980997,149.13,149.09,11.08980996]
[1745915287584,1e-08,149.13,149.12,11.08980996]
[1745915289285,1e-08,149.13,149.1,6.70690811]
[1745915289488,1e-08,149.13,149.11,11.08980996]
[1745915290787,1e-08,149.13,149.11,17.79612541]
[1745915291166,1e-08,149.13,149.09,8.1449]
[1745915291382,11.08980996,149.12,149.08,17.79761784]
[1745915291691,11.08980996,149.11,149.08,6.70780788]
[1745915291866,1e-08,149.13,149.07,20.08818426]
[1745915291867,11.08980996,149.1,149.07,20.08818426]
[1745915292196,11.08980996,149.11,149.07,31.17799422]
[1745915292499,11.08980996,149.1,149.07,20.08818426]
[1745915292997,82.9,149.12,149.07,31.17799422]
[1745915292998,11.08980996,149.11,149.07,31.17799422]
[1745915293775,11.08980996,149.11,149.07,20.08818426]
[1745915294096,11.08980996,149.11,149.07,31.17799422]
[1745915295105,82.9,149.12,149.07,6.70818426]
[1745915295106,11.08980996,149.09,149.07,6.70818426]
[1745915295401,11.08980996,149.1,149.07,6.70818426]
[1745915295795,93.98980996,149.12,149.07,6.70818426]
[1745915296009,82.9,149.12,149.09,11.08980996]
[1745915297206,82.9,149.12,149.1,6.70690811]
[1745915298083,1e-08,149.13,149.1,6.70690811]
[1745915298288,1e-08,149.13,149.1,24.4525919]
[1745915298681,1e-08,149.13,149.12,17.74568379]
[1745915299704,1e-08,149.13,149.12,6.70600858]
[1745915303681,17.74568379,149.15,149.12,6.70600858]
[1745915303682,17.03807174,149.15,149.12,6.70600858]
[1745915304077,100.64568379,149.16,149.12,24.45169237]
[1745915307308,17.74568379,149.15,149.12,6.70600858]
[1745915309204,100.64568379,149.16,149.12,17.74568379]
[1745915309815,100.64568379,149.16,149.1,16.76727028]
[1745915309816,17.74568379,149.15,149.11,17.74568379]
[1745915310814,17.74568379,149.15,149.12,6.70600858]
[1745915313612,0.063,149.17,149.12,41.21671382]
[1745915313919,0.063,149.17,149.16,17.74568379]
[1745915314295,0.063,149.17,149.16,24.44989403]
[1745915315312,0.063,149.17,149.16,30.71609403]
[1745915317513,0.063,149.17,149.16,24.0467206]
[1745915319896,0.063,149.17,149.15,6.70450166]
[1745915320086,0.063,149.17,149.15,17.78081202]
[1745915320286,0.063,149.17,149.16,11.07631036]
[1745915321891,0.063,149.17,149.16,17.7805206]
[1745915330301,0.063,149.17,149.16,19.12094747]
[1745915330601,0.063,149.17,149.16,48.84690669]
[1745915331515,0.063,149.17,149.16,37.77059633]
[1745915331722,0.063,149.17,149.16,48.84690669]
[1745915333001,0.063,149.17,149.16,26.69428597]
[1745915333199,0.063,149.17,149.16,17.7805206]
[1745915339827,0.063,149.17,149.16,17.7805206]
[1745915340529,0.063,149.17,149.14,13.3]
[1745915340728,11.07631036,149.16,149.14,13.3]
[1745915341230,11.07631036,149.15,149.11,6.70633797]
[1745915341735,11.07631036,149.15,149.11,17.78264833]
[1745915342230,93.97631036,149.16,149.12,11.07631036]
[1745915342434,82.9,149.16,149.15,11.07631036]
[1745915342610,0.063,149.17,149.15,11.07631036]
[1745915342812,0.063,149.17,149.16,11.07631036]
[1745915344028,0.063,149.17,149.16,17.7805206]
[1745915350250,0.063,149.17,149.16,17.7805206]
[1745915351523,0.063,149.17,149.16,6.70421024]
[1745915351735,0.063,149.17,149.15,6.70447243]
[1745915351938,0.063,149.17,149.15,17.78078279]
[1745915352455,0.063,149.17,149.16,11.07631036]
[1745915353952,0.063,149.17,149.16,17.7805206]
[1745915358848,0.063,149.17,149.15,25.35430859]
[1745915359051,0.063,149.17,149.16,11.07631036]
[1745915361445,0.063,149.17,149.16,17.7805206]
[1745915364952,11.13931036,149.17,149.08,311.3049]
[1745915365252,11.07631036,149.16,149.11,11.07631036]
[1745915365663,11.07631036,149.16,149.12,11.07631036]
[1745915367253,11.07631036,149.16,149.12,17.78205632]
[1745915369746,0.063,149.17,149.15,11.07631036]
[1745915370431,0.063,149.17,149.16,11.07631036]
[1745915371559,0.063,149.17,149.16,17.7805206]
[1745915379073,0.063,149.17,149.16,47.50647982]
[1745915379282,0.063,149.17,149.16,48.84697741]
[1745915381563,0.063,149.19,149.18,44.64964886]
[1745915381765,0.063,149.19,149.18,57.06614446]
[1745915382372,0.063,149.19,149.18,63.76945589]
[1745915385356,0.063,149.19,149.18,34.04349667]
[1745915385558,0.063,149.19,149.18,43.77962179]
[1745915396697,0.063,149.19,149.18,57.05962179]
[1745915398155,0.063,149.19,149.18,19.98331143]
[1745915400356,0.063,149.19,149.18,31.05962179]
[1745915400855,0.063,149.19,149.14,56.04260068]
[1745915401054,0.063,149.19,149.17,11.07631036]
[1745915401289,0.063,149.19,149.18,11.07631036]
[1745915402188,0.063,149.19,149.17,11.07631036]
[1745915402690,0.063,149.19,149.18,11.07631036]
[1745915404472,0.063,149.19,149.14,138.82964886]
[1745915404662,11.13931036,149.19,149.15,6.70465973]
[1745915404864,11.07631036,149.16,149.14,13.28]
[1745915405075,11.07631036,149.16,149.12,6.70600858]
[1745915405482,11.07631036,149.16,149.12,17.78231894]
[1745915407071,93.97631036,149.17,149.13,11.07631036]
[1745915407271,93.97631036,149.17,149.12,23.47103003]
[1745915407487,93.97631036,149.17,149.13,11.07631036]
[1745915408383,93.97631036,149.17,149.12,16.76502145]
[1745915408680,93.97631036,149.17,149.13,11.07631036]
[1745915409264,82.9,149.17,149.14,11.07631036]
[1745915410462,82.9,149.17,149.15,6.70465973]
[1745915410785,82.9,149.17,149.15,17.78097009]
[1745915411476,82.9,149.17,149.15,6.70465973]
[1745915412691,11.07631036,149.18,149.15,6.70465973]
[1745915414790,0.063,149.19,149.16,11.07631036]
[1745915414970,0.063,149.19,149.17,11.07631036]
[1745915415168,0.063,149.19,149.16,11.07631036]
[1745915415583,11.07631036,149.18,149.15,6.70465973]
[1745915415987,11.07631036,149.17,149.14,6.70492268]
[1745915416394,11.07631036,149.16,149.12,6.7056304]
[1745915416564,11.07631036,149.15,149.12,6.7056304]
[1745915416765,89.60378532,149.17,149.12,6.7056304]
[1745915417079,11.07631036,149.14,149.12,6.7056304]
[1745915417986,11.07631036,149.15,149.11,6.73645831]
[1745915418166,11.07631036,149.15,149.11,17.81276867]
[1745915418360,12.60011036,149.16,149.11,17.81276867]
[1745915418586,1.5238,149.16,149.12,11.07631036]
[1745915418790,93.97631036,149.17,149.13,11.07631036]
[1745915419295,93.97631036,149.17,149.12,11.07631036]
[1745915419594,11.07631036,149.16,149.12,11.07631036]
[1745915420493,11.07631036,149.16,149.13,6.7055589]
[1745915420696,93.97631036,149.17,149.13,6.7055589]
[1745915422399,82.9,149.17,149.13,6.7055589]
[1745915422578,11.07631036,149.14,149.11,0.03]
[1745915422778,11.07631036,149.12,149.11,0.03]
[1745915426587,93.97631036,149.13,149.11,0.03]
[1745915427207,11.07631036,149.12,149.11,0.03]
[1745915428995,17.78231894,149.12,149.11,0.03]
[1745915433203,100.68231894,149.12,149.11,0.03]
[1745915434595,17.78231894,149.12,149.11,0.03]
[1745915440320,20.0057669,149.13,149.11,0.03]
[1745915440490,11.07631036,149.12,149.11,0.03]
[1745915442892,17.78231894,149.12,149.11,0.03]
[1745915451728,11.07631036,149.12,149.11,0.03]
[1745915452019,17.78231894,149.12,149.11,0.03]
[1745915453123,11.07631036,149.12,149.11,0.03]
[1745915455208,11.07631036,149.13,149.11,0.03]
[1745915455408,11.07631036,149.12,149.11,0.03]
[1745915456805,11.07631036,149.13,149.11,0.03]
[1745915458524,6.7051867,149.14,149.11,0.03]
[1745915458525,11.07631036,149.12,149.11,0.03]
[1745915461731,17.78231894,149.12,149.11,0.03]
[1745915462104,11.07631036,149.12,149.11,0.03]
[1745915462617,11.07631036,149.13,149.11,0.03]
[1745915462834,11.07631036,149.12,149.11,0.03]
[1745915465441,11.07631036,149.13,149.11,0.03]
[1745915466134,6.7045708,149.16,149.11,0.03]
[1745915466135,11.07631036,149.14,149.11,0.03]
[1745915468108,11.07631036,149.13,149.11,0.03]
[1745915471034,11.07631036,149.12,149.11,0.03]
[1745915473343,17.78231894,149.12,149.11,0.03]
[1745915479929,11.07631036,149.12,149.11,0.03]
[1745915481128,17.78231894,149.12,149.11,0.03]
[1745915481839,11.07631036,149.12,149.11,0.03]
[1745915483417,6.70465973,149.15,149.11,0.03]
[1745915483754,11.07631036,149.12,149.11,0.03]
[1745915496776,17.78231894,149.12,149.11,0.03]
[1745915505553,11.07631036,149.12,149.11,0.03]
[1745915506577,6.70465973,149.15,149.11,0.03]
[1745915506876,11.07631036,149.12,149.11,0.03]
[1745915509298,17.78231894,149.12,149.11,0.03]
[1745915514994,36.4319678,149.12,149.11,0.03]
[1745915515195,47.50827816,149.12,149.11,0.03]
[1745915520500,36.4319678,149.12,149.11,0.03]
[1745915521301,17.78231894,149.12,149.11,0.03]
[1745915528194,47.50827816,149.12,149.11,0.03]
[1745915531096,64.27329961,149.12,149.09,0.03]
[1745915531273,40.80226958,149.1,149.09,0.03]
[1745915532199,40.80226958,149.1,149.07,0.03]
[1745915532403,29.72595922,149.08,149.07,0.03]
[1745915532574,6.70825786,149.07,149.05,0.03]
[1745915532774,40.80226958,149.06,149.02,0.03]
[1745915533078,22.15262072,149.03,149.02,0.03]
[1745915533909,28.86267909,149.03,149.02,0.03]
[1745915534577,56.58706354,149.06,149.02,0.03]
[1745915534578,21.1646276,149.06,149.02,0.03]
[1745915534781,11.07631036,149.03,149.02,0.03]
[1745915534981,11.07631036,149.04,149.02,0.03]
[1745915535180,11.07631036,149.05,149.02,0.03]
[1745915536123,11.07631036,149.05,149.02,6.74050865]
[1745915536821,11.07631036,149.04,149.02,6.74050865]
[1745915537803,11.07631036,149.03,149.02,0.03]
[1745915538005,11.07631036,149.04,149.02,0.03]
[1745915538193,11.07631036,149.03,149.02,0.03]
[1745915538392,11.07631036,149.04,149.02,0.03]
[1745915538702,11.07631036,149.03,149.02,0.03]
[1745915539778,11.07631036,149.05,149.02,0.03]
[1745915540307,11.07631036,149.04,149.02,0.03]
[1745915540606,11.07631036,149.05,149.02,0.03]
[1745915540790,17.78548828,149.05,149.02,0.03]
[1745915540987,11.07631036,149.04,149.02,0.03]
[1745915542181,6.70918122,149.05,149.02,0.03]
[1745915542182,11.07631036,149.03,149.02,0.03]
[1745915543299,17.78636873,149.03,149.02,0.03]
[1745915545215,47.51232795,149.03,149.02,0.03]
[1745915545509,60.81232795,149.03,149.02,0.03]
[1745915549116,42.16267909,149.03,149.02,0.03]
[1745915549417,31.08636873,149.03,149.02,0.03]
[1745915550395,20.01005837,149.03,149.02,0.03]
[1745915550593,31.08636873,149.03,149.02,0.03]
[1745915551097,42.16267909,149.03,149.02,0.03]
[1745915552198,60.81232795,149.03,149.02,0.03]
[1745915552406,60.81232795,149.03,149.01,0.03]
[1745915552607,11.07631036,149.02,149.01,0.03]
[1745915553734,18.64964886,149.01,148.94,9.11735669]
[1745915553903,22.15262072,148.97,148.94,9.11735669]
[1745915554226,54.10226958,148.97,148.94,9.11735669]
[1745915554408,36.43962152,148.95,148.94,9.11735669]
[1745915554605,6.7136623,148.95,148.94,9.11735669]
[1745915554809,29.19081631,148.95,148.94,9.11735669]
[1745915555005,18.11450595,148.95,148.94,9.11735669]
[1745915555715,18.11450595,148.95,148.94,40.11771074]
[1745915556220,16.44790595,148.95,148.94,40.11771074]
[1745915556608,16.44790595,148.95,148.94,53.41771074]
[1745915556797,16.44790595,148.95,148.94,35.63336975]
[1745915557118,16.44790595,148.95,148.94,53.41771074]
[1745915557291,16.44790595,148.95,148.94,35.63336975]
[1745915557496,16.44790595,148.95,148.94,28.91925669]
[1745915558507,16.44790595,148.95,148.94,9.11735669]
[1745915558712,40.94590924,148.95,148.94,9.11735669]
[1745915560015,59.5955581,148.95,148.94,9.11735669]
[1745915563525,40.94590924,148.95,148.94,9.11735669]
[1745915563715,34.23224694,148.95,148.94,9.11735669]
[1745915564036,40.94590924,148.95,148.94,9.11735669]
[1745915564828,34.23224694,148.95,148.94,9.11735669]
[1745915565211,40.94590924,148.95,148.94,9.11735669]
[1745915572628,16.44790595,148.95,148.94,9.11735669]
[1745915573338,16.44790595,148.95,148.94,15.83146975]
[1745915573714,16.44790595,148.95,148.94,33.61581074]
[1745915574740,17.78434099,148.99,148.94,33.61581074]
[1745915574917,17.78434099,148.99,148.94,15.83146975]
[1745915575242,17.78434099,148.98,148.94,33.61581074]
[1745915575948,17.78434099,148.99,148.94,33.61581074]
[1745915577941,17.78434099,148.99,148.94,6.71411306]
[1745915578122,17.78434099,148.99,148.94,24.49845405]
[1745915578545,17.78434099,148.98,148.94,24.49845405]
[1745915579931,17.78434099,148.98,148.94,6.71411306]
[1745915580120,17.78434099,148.98,148.94,24.49845405]
[1745915580742,17.78434099,148.99,148.95,17.78434099]
[1745915580944,17.78434099,149.0,148.96,17.78434099]
[1745915581154,17.78434099,149.02,148.98,17.78434099]
[1745915581447,17.78434099,149.03,148.98,17.78434099]
[1745915582148,17.78434099,149.02,148.99,6.71185985]
[1745915582933,17.78434099,149.02,148.98,24.49661621]
[1745915583133,17.78434099,149.01,148.96,13.44]
[1745915583323,6.70979317,149.04,148.96,13.44]
[1745915583324,36.43398985,149.03,148.96,13.44]
[1745915583532,17.78434099,148.98,148.96,13.44]
[1745915583837,17.78434099,148.98,148.95,1.6659]
[1745915584231,17.78434099,148.97,148.95,1.6659]
[1745915585240,17.78434099,148.97,148.93,24.06024099]
[1745915585859,17.78434099,148.98,148.94,17.78434099]
[1745915586148,17.78434099,149.0,148.96,17.78434099]
[1745915586321,17.78434099,148.99,148.95,24.49770637]
[1745915586747,6.71050865,149.02,148.95,24.49770637]
[1745915587049,6.71050865,149.02,148.96,17.78434099]
[1745915587050,17.78434099,149.01,148.96,17.78434099]
[1745915587245,24.49535513,149.01,148.96,24.49728035]
[1745915587565,30.21528031,149.03,148.98,17.78434099]
[1745915587566,24.49503954,149.02,148.98,17.78434099]
[1745915587969,17.78434099,149.01,148.97,17.78434099]
[1745915588332,6.71069855,149.02,148.96,26.02298035]
[1745915588333,17.78434099,149.0,148.96,26.02298035]
[1745915588841,6.71069855,149.02,148.96,26.02298035]
[1745915589049,17.78434099,149.0,148.96,26.02298035]
[1745915589557,24.49548475,149.01,148.97,17.78434099]
[1745915590131,17.78434099,149.0,148.96,26.02298035]
[1745915590656,17.78434099,149.01,148.97,17.78434099]
[1745915590864,17.78434099,149.0,148.96,8.23863936]
[1745915591073,17.78434099,149.0,148.96,26.02298035]
[1745915591233,17.78434099,148.99,148.96,1.5257]
[1745915591741,17.78434099,148.99,148.95,17.78434099]
[1745915591941,17.78434099,148.98,148.94,24.49824225]
[1745915592273,17.78434099,148.98,148.93,6.2759]
[1745915592565,17.78434099,148.96,148.93,12.99042238]
[1745915592747,17.78434099,148.97,148.93,30.77476337]
[1745915593864,17.78434099,148.97,148.93,12.99042238]
[1745915594162,24.49725378,148.97,148.93,24.06024099]
[1745915595062,24.49725378,148.97,148.93,6.2759]
[1745915595660,24.49725378,148.97,148.93,24.06024099]
[1745915596246,24.49725378,148.97,148.93,30.77470631]
[1745915596458,6.71291279,148.97,148.93,30.77470631]
[1745915596654,24.49725378,148.97,148.93,17.78434099]
[1745915598069,24.49725378,148.97,148.92,24.49892519]
[1745915598933,17.78434099,148.96,148.91,13.44]
[1745915599137,17.78434099,148.95,148.91,31.22434099]
[1745915599381,17.78434099,148.94,148.91,13.44]
[1745915600172,24.49847029,148.94,148.91,13.44]
[1745915600347,17.78434099,148.93,148.91,13.44]
[1745915602257,17.78434099,148.92,148.88,12.89739313]
[1745915603563,6.71411306,148.94,148.88,12.89739313]
[1745915603766,17.78434099,148.92,148.88,12.89739313]
[1745915604070,17.78434099,148.92,148.88,30.68173412]
[1745915604475,17.78434099,148.93,148.89,17.78434099]
[1745915604760,17.78434099,148.92,148.88,12.89739313]
[1745915604969,17.78434099,148.92,148.88,23.96494099]
[1745915605356,17.78434099,148.92,148.88,6.1806]
[1745915605956,17.78434099,148.92,148.88,12.89734868]
[1745915606155,17.78434099,148.92,148.88,30.68168967]
[1745915606671,17.78434099,148.91,148.88,0.03]
[1745915606866,24.49998944,148.91,148.88,0.03]
[1745915607259,17.78434099,148.91,148.88,0.03]
[1745915608648,24.50000398,148.91,148.88,0.03]
[1745915609073,17.78434099,148.9,148.88,0.03]
[1745915609643,17.78434099,148.89,148.88,0.03]
[1745915610359,24.50033774,148.9,148.88,0.03]
[1745915610557,16.78528266,148.94,148.88,17.81434099]
[1745915610762,17.78434099,148.93,148.88,17.81434099]
[1745915610973,17.78434099,148.92,148.88,17.81434099]
[1745915611153,50.49890487,148.93,148.88,17.81434099]
[1745915611472,37.12028233,148.93,148.89,11.12028233]
[1745915612279,8.28773802,148.95,148.9,11.12028233]
[1745915612457,4.86847892,148.99,148.93,11.12028233]
[1745915612656,1.5441,148.99,148.94,11.12028233]
[1745915612880,11.12028233,148.98,148.94,11.12028233]
[1745915613459,27.5441,148.99,148.95,17.77772604]
[1745915613671,43.77772604,148.99,148.95,17.77772604]
[1745915613993,50.48959257,148.99,148.95,17.77772604]
[1745915614294,43.77772604,148.99,148.95,17.77772604]
[1745915614470,43.77772604,148.99,148.95,24.49094545]
[1745915615880,17.77772604,149.0,148.96,17.77772604]
[1745915617581,17.77772604,149.0,148.96,24.49088652]
[1745915618076,17.77772604,149.01,148.97,17.77772604]
[1745915618979,17.77772604,149.01,148.97,24.4903041]
[1745915619583,17.77772604,149.0,148.95,24.49123855]
[1745915620482,17.77772604,148.99,148.95,24.49123855]
[1745915622184,17.77772604,149.0,148.96,17.77772604]
[1745915622363,17.77772604,149.0,148.95,6.71351251]
[1745915622364,17.77772604,149.0,148.97,17.77772604]
[1745915625976,24.48914819,149.0,148.97,17.77772604]
[1745915626170,17.77772604,149.0,148.97,17.77772604]
[1745915627387,17.77772604,149.0,148.97,24.49047458]
[1745915627771,17.77772604,149.0,148.97,6.71274854]
[1745915628383,17.77772604,149.0,148.95,6.7136623]
[1745915628565,17.77772604,148.97,148.95,6.7136623]
[1745915628964,17.77772604,148.98,148.95,6.7136623]